bitfinex-derivatives/quotes_BTCF0:USTF0_20250728
["timestamp","ask_amount","ask_price","bid_price","bid_amount"]
[1753725836716,0.27452789,117690.0,117680.0,1.75877932]
[1753725836918,0.50762789,117690.0,117680.0,1.54046604]
[1753725837123,0.50762789,117690.0,117680.0,1.10731006]
[1753725837420,0.50762789,117690.0,117680.0,1.54426604]
[1753725837824,0.50762789,117690.0,117680.0,1.52133365]
[1753725838119,0.50762789,117690.0,117680.0,0.79349365]
[1753725838318,0.50762789,117690.0,117680.0,0.36797437]
[1753725838526,0.50762789,117690.0,117680.0,0.78399796]
[1753725839224,0.4910151,117680.0,117670.0,0.02293239]
[1753725839421,0.50764309,117680.0,117670.0,1.11783239]
[1753725839721,0.35860309,117680.0,117670.0,1.55458837]
[1753725839925,0.43969309,117680.0,117670.0,1.53269598]
[1753725840126,0.50764309,117680.0,117670.0,1.53269598]
[1753725840327,0.50764309,117680.0,117670.0,1.53469598]
[1753725840518,0.50764309,117680.0,117670.0,0.46188667]
[1753725840722,0.50764309,117680.0,117670.0,1.51281667]
[1753725840917,0.50764309,117680.0,117670.0,1.56266667]
[1753725841121,0.504812,117680.0,117670.0,1.12571091]
[1753725841321,0.504812,117680.0,117670.0,1.56266689]
[1753725841730,0.504812,117680.0,117670.0,1.56386689]
[1753725841924,0.504812,117680.0,117670.0,1.52322825]
[1753725842231,0.504812,117680.0,117670.0,1.13828227]
[1753725843229,0.504812,117680.0,117670.0,0.35688227]
[1753725843425,0.504812,117680.0,117670.0,0.30703227]
[1753725843824,0.504812,117680.0,117670.0,0.24107227]
[1753725844027,0.504812,117680.0,117670.0,0.14640227]
[1753725844229,0.504812,117680.0,117670.0,0.01321136]
[1753725844427,1.11172798,117680.0,117670.0,0.01321136]
[1753725844632,0.674772,117680.0,117670.0,0.01321136]
[1753725844933,0.674772,117680.0,117670.0,6e-08]
[1753725845122,1.11172798,117680.0,117670.0,6e-08]
[1753725845322,0.674772,117680.0,117670.0,6e-08]
[1753725845531,0.4910293,117670.0,117660.0,0.75769598]
[1753725845829,0.4910438,117660.0,117650.0,0.32074]
[1753725846124,0.5048407,117660.0,117650.0,0.76884705]
[1753725846325,0.1837807,117660.0,117650.0,0.33189107]
[1753725846529,0.2289807,117660.0,117650.0,0.33189107]
[1753725846733,0.3826807,117660.0,117650.0,0.76884705]
[1753725846932,0.5038407,117660.0,117650.0,0.76884705]
[1753725847132,0.5028407,117660.0,117650.0,0.76884705]
[1753725848634,0.5028407,117660.0,117650.0,1.56708705]
[1753725848831,0.5038407,117660.0,117650.0,0.77084705]
[1753725849132,0.5038407,117660.0,117650.0,1.56700705]
[1753725849530,0.5038407,117660.0,117650.0,1.13005107]
[1753725849734,0.5038407,117660.0,117650.0,1.56700705]
[1753725850427,0.5038407,117660.0,117650.0,1.56800705]
[1753725851329,0.5038407,117660.0,117650.0,0.33389107]
[1753725851529,0.5038407,117660.0,117650.0,1.56760705]
[1753725852136,0.5038407,117660.0,117650.0,1.31760705]
[1753725852636,0.2279807,117660.0,117650.0,1.31760705]
[1753725853237,0.2279807,117660.0,117650.0,1.48760535]
[1753725853433,0.2279807,117660.0,117650.0,1.31760705]
[1753725853742,0.2279807,117660.0,117650.0,0.88065107]
[1753725853933,0.2279807,117660.0,117650.0,0.57095705]
[1753725854236,0.2279807,117660.0,117650.0,0.92892107]
[1753725854439,0.4506307,117660.0,117650.0,0.92892107]
[1753725854635,0.5038407,117660.0,117650.0,1.36587705]
[1753725855337,0.3695407,117660.0,117650.0,1.36587705]
[1753725855538,0.2279807,117660.0,117650.0,1.36587705]
[1753725855829,0.3695407,117660.0,117650.0,0.57095705]
[1753725856132,0.5038407,117660.0,117650.0,0.92792107]
[1753725856334,0.5038407,117660.0,117650.0,1.36487705]
[1753725856939,0.5038407,117660.0,117650.0,1.36483705]
[1753725857130,0.5038407,117660.0,117650.0,0.13400107]
[1753725857332,0.5038407,117660.0,117650.0,1.36423705]
[1753725858941,0.1699774,117670.0,117650.0,2.70959195]
[1753725859144,0.40277989,117670.0,117660.0,0.56254598]
[1753725859335,0.40277989,117670.0,117660.0,0.73252618]
[1753725859845,0.31508459,117670.0,117660.0,0.73252618]
[1753725860534,0.36128459,117670.0,117660.0,0.73352618]
[1753725861742,0.31608459,117670.0,117660.0,0.73352618]
[1753725861940,0.31608459,117670.0,117660.0,1.52532618]
[1753725862241,0.36574459,117670.0,117660.0,1.52532618]
[1753725865236,0.23109509,117670.0,117660.0,1.52532618]
[1753725865437,0.23109509,117670.0,117660.0,1.52168618]
[1753725865740,0.28075509,117670.0,117660.0,1.52168618]
[1753725866132,0.23109509,117670.0,117660.0,1.52168618]
[1753725866336,0.3045916,117680.0,117670.0,0.3005858]
[1753725866642,0.3045916,117680.0,117670.0,0.73754178]
[1753725867138,0.3045916,117680.0,117670.0,1.52842178]
[1753725867335,0.3815216,117680.0,117670.0,1.35805598]
[1753725867537,0.5806916,117680.0,117670.0,1.35805598]
[1753725867737,0.5826916,117680.0,117670.0,1.52902178]
[1753725868137,0.5836916,117680.0,117670.0,0.73854178]
[1753725868338,0.5836916,117680.0,117670.0,0.56857598]
[1753725868535,0.5836916,117680.0,117670.0,1.35841598]
[1753725868934,0.5836916,117680.0,117670.0,0.56857598]
[1753725869143,0.5836916,117680.0,117670.0,2.53365598]
[1753725869646,0.5836916,117680.0,117670.0,2.53345598]
[1753725869846,0.5836916,117680.0,117670.0,1.74381598]
[1753725870053,0.5836916,117680.0,117670.0,2.53353598]
[1753725870349,0.5836916,117680.0,117670.0,0.56857598]
[1753725870543,0.5836916,117680.0,117670.0,2.53325598]
[1753725870849,0.5836916,117680.0,117670.0,2.0963]
[1753725872143,0.5836916,117680.0,117670.0,2.09578]
[1753725872847,0.5836916,117680.0,117670.0,2.53273598]
[1753725873746,0.5836916,117680.0,117670.0,1.74381598]
[1753725873952,0.5836916,117680.0,117670.0,2.53049598]
[1753725874943,0.5836916,117680.0,117670.0,2.09354]
[1753725875150,0.5836916,117680.0,117670.0,2.53049598]
[1753725878352,0.60166669,117680.0,117670.0,2.53049598]
[1753725879851,0.60166669,117680.0,117670.0,1.74381598]
[1753725880148,0.60166669,117680.0,117670.0,2.52833598]
[1753725880452,0.60166669,117680.0,117670.0,2.52773598]
[1753725880752,0.60166669,117680.0,117670.0,2.52741598]
[1753725881751,0.60146731,117680.0,117670.0,2.52741598]
[1753725881951,0.60146731,117680.0,117670.0,1.74381598]
[1753725882249,0.60146731,117680.0,117670.0,2.52717598]
[1753725882448,0.60146731,117680.0,117670.0,1.25505]
[1753725882649,1.03842329,117680.0,117670.0,1.9353893]
[1753725882947,0.60146731,117680.0,117670.0,1.9353893]
[1753725883149,0.60146731,117680.0,117670.0,2.0141993]
[1753725883852,0.60146316,117680.0,117670.0,2.0141993]
[1753725884847,0.60146316,117680.0,117670.0,1.2319593]
[1753725885052,0.60146316,117680.0,117670.0,2.0140793]
[1753725885848,1.03841914,117680.0,117670.0,0.9768596]
[1753725886054,1.09909946,117680.0,117670.0,1.7084734]
[1753725886257,1.09909946,117680.0,117670.0,0.9282334]
[1753725886454,1.09909946,117680.0,117670.0,1.7080734]
[1753725886861,0.66214348,117680.0,117670.0,1.7080734]
[1753725887155,0.66214348,117680.0,117670.0,1.7868834]
[1753725887556,0.66214348,117680.0,117670.0,1.0070434]
[1753725887758,0.66214348,117680.0,117670.0,1.7866434]
[1753725888558,1.09909946,117680.0,117670.0,1.7866434]
[1753725889358,1.09909946,117680.0,117670.0,0.85841]
[1753725889558,0.66214348,117680.0,117670.0,0.13062]
[1753725889758,0.66214348,117680.0,117670.0,0.90918]
[1753725890454,0.66214348,117680.0,117670.0,0.7440903]
[1753725890648,1.03841914,117680.0,117670.0,0.661349]
[1753725890849,1.03841914,117680.0,117650.0,0.06296107]
[1753725890850,0.4957416,117660.0,117650.0,0.06296107]
[1753725891051,0.51351316,117660.0,117650.0,1.27763705]
[1753725891357,0.51351316,117660.0,117650.0,1.27747705]
[1753725891956,0.51351316,117660.0,117650.0,0.84052107]
[1753725892160,0.51351316,117660.0,117650.0,1.27847705]
[1753725892458,0.51351316,117660.0,117650.0,1.32985705]
[1753725892760,0.51351316,117660.0,117650.0,1.33085705]
[1753725893660,0.51351316,117660.0,117650.0,0.55329705]
[1753725893861,0.51351316,117660.0,117650.0,1.33225705]
[1753725895161,0.44983316,117660.0,117650.0,0.55329705]
[1753725895361,0.52027316,117660.0,117650.0,1.33093705]
[1753725897562,0.52027316,117660.0,117650.0,0.55329705]
[1753725897866,0.52027316,117660.0,117650.0,1.32961705]
[1753725900160,0.52027316,117660.0,117650.0,0.55329705]
[1753725900357,0.88678914,117660.0,117650.0,0.88067]
[1753725900564,0.95722914,117660.0,117650.0,0.002]
[1753725900867,0.52027316,117660.0,117650.0,0.77696]
[1753725901059,0.52027316,117660.0,117650.0,0.05258]
[1753725901260,0.52027316,117660.0,117650.0,0.82738]
[1753725901462,0.52027316,117660.0,117650.0,0.82638]
[1753725901763,0.52027316,117660.0,117650.0,0.05258]
[1753725901964,0.52027316,117660.0,117650.0,0.87909]
[1753725902265,0.52027316,117660.0,117650.0,0.87785]
[1753725902466,0.52127316,117660.0,117650.0,0.87685]
[1753725903266,0.52127316,117660.0,117650.0,1.31380598]
[1753725903468,0.52127316,117660.0,117650.0,0.87685]
[1753725903666,0.95822914,117660.0,117650.0,0.87685]
[1753725903968,0.95822914,117660.0,117650.0,0.87605]
[1753725904269,0.52127316,117660.0,117650.0,0.89814549]
[1753725905567,0.95822914,117660.0,117650.0,0.84639549]
[1753725905867,0.52127316,117660.0,117650.0,0.84639549]
[1753725906068,0.52127316,117660.0,117650.0,0.89790549]
[1753725907262,0.52127316,117660.0,117650.0,0.12418549]
[1753725907461,0.52127316,117660.0,117650.0,0.89626549]
[1753725908267,0.52127316,117660.0,117650.0,0.12418549]
[1753725909067,0.52127316,117660.0,117650.0,0.56114147]
[1753725909770,0.52127316,117660.0,117650.0,0.12418549]
[1753725909962,0.52127316,117660.0,117650.0,0.14710867]
[1753725912366,0.95822914,117660.0,117650.0,0.14710867]
[1753725912670,0.95822914,117660.0,117650.0,7e-08]
[1753725912973,0.95822914,117660.0,117650.0,0.82682007]
[1753725913173,0.52127316,117660.0,117650.0,0.82682]
[1753725913569,0.95822914,117660.0,117650.0,0.7984753]
[1753725913871,0.95822914,117660.0,117650.0,0.7631668]
[1753725914066,0.95822914,117660.0,117650.0,0.6588324]
[1753725914266,0.95822914,117660.0,117650.0,0.5503699]
[1753725914567,0.52127316,117660.0,117650.0,0.4574377]
[1753725914973,0.95822914,117660.0,117650.0,0.5089477]
[1753725915172,0.5026576,117650.0,117640.0,0.12270524]
[1753725915364,0.52042916,117650.0,117640.0,0.90278524]
[1753725916576,0.52042916,117650.0,117640.0,0.84661614]
[1753725916761,0.52042916,117650.0,117640.0,0.01461734]
[1753725916961,0.95738514,117650.0,117640.0,4e-08]
[1753725917175,0.3034434,117640.0,117630.0,1.61223598]
[1753725917477,0.32121496,117640.0,117630.0,1.17528]
[1753725917776,0.52044496,117640.0,117630.0,1.97544309]
[1753725917975,0.52044496,117640.0,117630.0,2.41239907]
[1753725918176,0.58869979,117640.0,117630.0,1.13883709]
[1753725918374,0.58869979,117640.0,117630.0,1.91795709]
[1753725918674,0.58869979,117640.0,117630.0,2.35491307]
[1753725918974,0.57192823,117640.0,117630.0,2.35791307]
[1753725919479,0.57192823,117640.0,117630.0,0.46163907]
[1753725919668,0.57192823,117640.0,117630.0,1.24067907]
[1753725920375,0.57192823,117640.0,117630.0,0.02468309]
[1753725920566,0.57192823,117640.0,117630.0,0.46163907]
[1753725920772,1.00888421,117640.0,117630.0,0.80684309]
[1753725920969,0.57192823,117640.0,117630.0,1.24379907]
[1753725921276,0.57192823,117640.0,117630.0,0.80684309]
[1753725921577,0.57192823,117640.0,117630.0,1.24379907]
[1753725921773,0.57092823,117640.0,117630.0,1.24079907]
[1753725921973,0.57292823,117640.0,117630.0,1.24527907]
[1753725922173,0.57292823,117640.0,117630.0,0.80832309]
[1753725922374,0.57292823,117640.0,117630.0,1.24527907]
[1753725922779,1.00988421,117640.0,117630.0,9e-08]
[1753725922978,0.57292823,117640.0,117630.0,9e-08]
[1753725923180,0.57392823,117640.0,117630.0,9e-08]
[1753725923380,1.01088421,117640.0,117630.0,9e-08]
[1753725923573,0.57392823,117640.0,117630.0,9e-08]
[1753725924177,1.01088421,117640.0,117630.0,9e-08]
[1753725924575,0.57392823,117640.0,117630.0,9e-08]
[1753725924776,0.57392823,117640.0,117630.0,0.02427236]
[1753725925074,0.28732823,117640.0,117630.0,0.46122834]
[1753725925581,0.37030823,117640.0,117630.0,0.46122834]
[1753725925779,0.57998823,117640.0,117630.0,0.46122834]
[1753725926775,0.57998823,117640.0,117630.0,1.24802834]
[1753725927179,0.57998823,117640.0,117630.0,1.24786834]
[1753725927382,0.2180734,117640.0,117630.0,1.24786834]
[1753725927971,0.1720134,117640.0,117630.0,1.85485212]
[1753725928175,0.1720134,117640.0,117630.0,1.41789614]
[1753725928782,0.2180734,117640.0,117630.0,1.41789614]
[1753725930082,0.2180734,117640.0,117630.0,0.46122834]
[1753725930385,0.5107334,117640.0,117630.0,1.24594834]
[1753725931684,0.5107334,117640.0,117630.0,1.24554834]
[1753725933384,0.5107334,117640.0,117630.0,1.24567309]
[1753725934277,0.52557702,117640.0,117630.0,1.24567309]
[1753725937687,0.52557702,117640.0,117630.0,0.80871711]
[1753725937886,0.52557702,117640.0,117630.0,1.24567309]
[1753725938086,0.52557702,117640.0,117630.0,0.80871711]
[1753725938286,0.962533,117640.0,117630.0,0.80871711]
[1753725938480,0.52557702,117640.0,117630.0,0.80871711]
[1753725939987,0.52557702,117640.0,117630.0,0.80375711]
[1753725941690,0.52557702,117640.0,117630.0,0.80263711]
[1753725943191,0.962533,117640.0,117630.0,0.80263711]
[1753725943498,0.962533,117640.0,117630.0,1e-08]
[1753725944785,0.962533,117640.0,117620.0,1.23413729]
[1753725944786,0.3886977,117630.0,117620.0,1.23413729]
[1753725944982,0.52359132,117630.0,117620.0,1.23413729]
[1753725946883,0.52459132,117630.0,117620.0,1.23413729]
[1753725947182,0.52459132,117630.0,117620.0,0.79718131]
[1753725947390,0.52559132,117630.0,117620.0,1.23613729]
[1753725947890,0.52459132,117630.0,117620.0,1.23413729]
[1753725948186,0.52559132,117630.0,117620.0,1.23513729]
[1753725949092,0.52559132,117630.0,117620.0,1.23013729]
[1753725949391,0.66669132,117630.0,117620.0,1.23013729]
[1753725949693,0.52559132,117630.0,117620.0,1.23013729]
[1753725951288,0.52559132,117630.0,117600.0,0.44204355]
[1753725951492,0.2962566,117610.0,117600.0,0.44204355]
[1753725951681,0.31110022,117610.0,117600.0,0.47893901]
[1753725951886,0.9605762,117610.0,117600.0,0.81305546]
[1753725952083,0.52362022,117610.0,117600.0,0.77616]
[1753725952687,0.52362022,117610.0,117600.0,0.77716]
[1753725953286,0.52362022,117610.0,117600.0,0.005]
[1753725953494,0.52462022,117610.0,117600.0,0.77596]
[1753725953694,0.52562022,117610.0,117600.0,0.008]
[1753725953895,0.52562022,117610.0,117600.0,0.77812]
[1753725954091,0.52562022,117610.0,117600.0,0.008]
[1753725954293,0.52462022,117610.0,117600.0,0.005]
[1753725954495,0.52562022,117610.0,117600.0,0.006]
[1753725955502,0.52562022,117610.0,117600.0,0.02768287]
[1753725957300,0.9625762,117610.0,117600.0,0.02768287]
[1753725957492,1.08979637,117610.0,117600.0,0.02768287]
[1753725957696,0.65284039,117610.0,117600.0,0.006]
[1753725958003,1.12732026,117610.0,117600.0,1e-07]
[1753725958191,0.69036428,117610.0,117600.0,1e-07]
[1753725958498,1.12732026,117610.0,117600.0,1e-07]
[1753725959900,1.12732026,117610.0,117600.0,0.02167413]
[1753725960195,0.13285,117590.0,117570.0,0.46752022]
[1753725960498,0.4990098,117580.0,117570.0,0.46752022]
[1753725960700,0.4990098,117580.0,117570.0,0.51334531]
[1753725961295,0.4990098,117580.0,117570.0,0.43695598]
[1753725961491,0.4990098,117580.0,117570.0,0.43995598]
[1753725961697,0.5000098,117580.0,117570.0,0.47247191]
[1753725962299,0.5000098,117580.0,117570.0,0.46947191]
[1753725962503,0.5000098,117580.0,117570.0,0.50857373]
[1753725962898,0.56756383,117580.0,117570.0,0.50857373]
[1753725963807,0.56656383,117580.0,117570.0,0.4760578]
[1753725964101,0.56756383,117580.0,117570.0,0.4750578]
[1753725964311,1.34176383,117580.0,117570.0,0.4750578]
[1753725964599,1.34176383,117580.0,117570.0,0.03810182]
[1753725964801,1.34176383,117580.0,117570.0,0.001]
[1753725965002,1.34176383,117580.0,117570.0,0.43795598]
[1753725965397,1.34176383,117580.0,117570.0,0.001]
[1753725965905,1.34176383,117580.0,117570.0,0.43795598]
[1753725966400,1.34176383,117580.0,117570.0,0.001]
[1753725966601,1.34176383,117580.0,117570.0,0.47523015]
[1753725966801,1.34176383,117580.0,117570.0,0.43795598]
[1753725967002,0.56756383,117580.0,117570.0,0.001]
[1753725967204,1.34856383,117580.0,117570.0,0.001]
[1753725967399,1.34856383,117580.0,117570.0,0.43795598]
[1753725967807,1.34780383,117580.0,117570.0,0.43795598]
[1753725968004,0.41854383,117580.0,117570.0,0.43795598]
[1753725968306,0.5000098,117580.0,117570.0,0.43795598]
[1753725970205,0.5000098,117580.0,117570.0,0.31795598]
[1753725970509,0.5000098,117580.0,117570.0,0.35437647]
[1753725971103,0.5000098,117580.0,117570.0,0.47337647]
[1753725972308,0.5000098,117580.0,117570.0,0.4953882]
[1753725972501,0.5000098,117580.0,117570.0,0.52590413]
[1753725973999,0.3558498,117580.0,117570.0,0.52590413]
[1753725974206,0.18568085,117580.0,117570.0,0.71355319]
[1753725974509,0.2181398,117580.0,117570.0,0.71355319]
[1753725975099,0.5000098,117580.0,117570.0,1.31891889]
[1753725975698,0.2181398,117580.0,117570.0,1.48903319]
[1753725976806,0.23272711,117580.0,117570.0,1.51195516]
[1753725978306,0.27809711,117580.0,117570.0,0.52590413]
[1753725978515,0.51459711,117580.0,117570.0,0.86194815]
[1753725978812,0.51459711,117580.0,117570.0,0.89567491]
[1753725979006,0.51459711,117580.0,117570.0,0.11187491]
[1753725979211,0.51459711,117580.0,117570.0,1.33255089]
[1753725979410,0.51459711,117580.0,117570.0,1.30962413]
[1753725980913,0.44683711,117580.0,117570.0,1.30962413]
[1753725981114,0.51459711,117580.0,117570.0,1.30962413]
[1753725981618,0.51459711,117580.0,117570.0,1.47973843]
[1753725981810,0.23272711,117580.0,117570.0,1.47973843]
[1753725982018,0.23538711,117580.0,117570.0,1.47973843]
[1753725984424,0.23538711,117580.0,117570.0,1.30962413]
[1753725984926,0.23538711,117580.0,117570.0,1.47973833]
[1753725985227,0.23538711,117580.0,117570.0,1.30962413]
[1753725985820,0.23538711,117580.0,117570.0,1.47973843]
[1753725986023,0.18568711,117580.0,117570.0,1.04278245]
[1753725986222,0.18568711,117580.0,117570.0,1.49504759]
[1753725986814,0.1710998,117580.0,117570.0,1.68235847]
[1753725987021,0.1710998,117580.0,117570.0,1.93235847]
[1753725987222,0.18582005,117580.0,117570.0,1.93235847]
[1753725987522,0.255145,117590.0,117580.0,0.1700998]
[1753725987728,0.2551185,117600.0,117590.0,0.1700853]
[1753725987926,0.26984058,117600.0,117590.0,1.86703431]
[1753725988121,0.26984058,117600.0,117590.0,1.43007833]
[1753725988517,0.26984058,117600.0,117590.0,2.03710631]
[1753725988819,0.26984058,117600.0,117590.0,1.60015033]
[1753725989218,0.31954058,117600.0,117590.0,1.60015033]
[1753725989625,0.32354058,117600.0,117590.0,1.60115033]
[1753725990125,0.32354058,117600.0,117590.0,1.57820501]
[1753725990428,0.60961058,117600.0,117590.0,0.02301173]
[1753725990626,0.60961058,117600.0,117590.0,0.80061173]
[1753725990926,1.04656656,117600.0,117590.0,0.001]
[1753725991130,1.04656656,117600.0,117590.0,0.7786]
[1753725991332,0.60961058,117600.0,117590.0,0.7786]
[1753725991628,0.61161058,117600.0,117590.0,0.7786]
[1753725991828,0.61161058,117600.0,117590.0,1.21555598]
[1753725992033,0.61161058,117600.0,117590.0,0.43795598]
[1753725992224,0.61161058,117600.0,117590.0,1.21471598]
[1753725992530,0.61161058,117600.0,117590.0,0.77776]
[1753725992730,0.61161058,117600.0,117590.0,0.77724]
[1753725993922,1.04856656,117600.0,117590.0,0.7100857]
[1753725994127,1.04456656,117600.0,117590.0,0.7100857]
[1753725994429,0.60861058,117600.0,117590.0,1.08255928]
[1753725994833,0.60861058,117600.0,117590.0,1.21263598]
[1753725995326,0.60761058,117600.0,117590.0,1.21163598]
[1753725995532,0.61161058,117600.0,117590.0,1.21263598]
[1753725996128,0.61161058,117600.0,117590.0,0.43795598]
[1753725996328,0.61161058,117600.0,117590.0,1.21239598]
[1753725998331,1.04856656,117600.0,117590.0,0.77472]
[1753725998530,1.10956615,117600.0,117590.0,0.77472]
[1753725998728,0.61161058,117600.0,117590.0,0.001]
[1753725999029,1.04856656,117600.0,117590.0,1e-07]
[1753725999235,1.04856656,117600.0,117590.0,0.7719601]
[1753725999938,1.04856656,117600.0,117590.0,0.79401684]
[1753726000138,1.04856656,117600.0,117590.0,0.02205684]
[1753726000438,1.04856656,117600.0,117590.0,0.79373684]
[1753726000838,1.04856656,117600.0,117590.0,0.79329684]
[1753726001034,1.04856656,117600.0,117590.0,0.7932226]
[1753726001240,0.61161058,117600.0,117590.0,0.7932226]
[1753726001735,0.61161058,117600.0,117590.0,1.23017858]
[1753726001939,0.61161058,117600.0,117590.0,0.7932226]
[1753726002528,0.61161058,117600.0,117590.0,1.23017858]
[1753726003542,0.61161058,117600.0,117590.0,0.7712401]
[1753726005240,0.61251449,117600.0,117590.0,0.7712401]
[1753726007133,0.61251449,117600.0,117590.0,1e-07]
[1753726007337,0.84908047,117600.0,117590.0,0.7671601]
[1753726007844,1.04947047,117600.0,117590.0,0.7671601]
[1753726008140,0.84908047,117600.0,117590.0,1e-07]
[1753726008346,0.84908047,117600.0,117590.0,0.7666001]
[1753726008740,0.99977047,117600.0,117590.0,0.7666001]
[1753726009044,1.04947047,117600.0,117590.0,0.7666001]
[1753726009648,1.04947047,117600.0,117590.0,1e-07]
[1753726009836,0.84908047,117600.0,117590.0,0.7666001]
[1753726010348,1.04947047,117600.0,117590.0,0.7666001]
[1753726010645,0.93242047,117600.0,117590.0,0.7654801]
[1753726010835,0.84908047,117600.0,117590.0,0.7647201]
[1753726011247,1.04947047,117600.0,117590.0,0.7647201]
[1753726012246,0.61251449,117600.0,117590.0,0.7647201]
[1753726012449,1.04947047,117600.0,117590.0,0.7647201]
[1753726013336,0.84908047,117600.0,117590.0,1e-07]
[1753726013542,0.84908047,117600.0,117590.0,0.7634801]
[1753726013848,1.05175047,117600.0,117590.0,0.7634801]
[1753726014740,0.84908047,117600.0,117590.0,0.7630401]
[1753726015156,0.41212449,117600.0,117590.0,1e-07]
[1753726015346,0.41212449,117600.0,117590.0,0.02088518]
[1753726015753,0.41212449,117600.0,117590.0,0.78272518]
[1753726015954,0.61479449,117600.0,117590.0,0.78272518]
[1753726017153,1.05175047,117600.0,117590.0,0.78272518]
[1753726019155,1.05175047,117600.0,117590.0,0.7618401]
[1753726020155,0.61479449,117600.0,117590.0,0.7618401]
[1753726020347,1.05175047,117600.0,117590.0,0.7618401]
[1753726021556,0.61479449,117600.0,117590.0,0.7618401]
[1753726021752,0.32224449,117600.0,117590.0,1.19879608]
[1753726021953,0.27674449,117600.0,117590.0,1.38966486]
[1753726022257,0.23422459,117600.0,117590.0,1.97590906]
[1753726022556,0.19170649,117600.0,117590.0,1.99669353]
[1753726022959,0.02162599,117600.0,117590.0,2.22590906]
[1753726023153,0.02162599,117600.0,117590.0,2.24669299]
[1753726023663,0.2975926,117620.0,117600.0,0.1275466]
[1753726023858,0.2975926,117620.0,117610.0,2.54269198]
[1753726024052,0.2975926,117620.0,117610.0,2.61237852]
[1753726024859,0.2975926,117620.0,117610.0,2.44232252]
[1753726025060,0.2975926,117620.0,117610.0,2.61237852]
[1753726025260,0.3430926,117620.0,117610.0,2.61437852]
[1753726025453,0.3510926,117620.0,117610.0,2.61437852]
[1753726026153,0.3530926,117620.0,117610.0,2.63598068]
[1753726026852,0.3510926,117620.0,117610.0,2.63598068]
[1753726027058,0.3450926,117620.0,117610.0,2.46392468]
[1753726027360,0.3480926,117620.0,117610.0,2.46492468]
[1753726027562,0.3480926,117620.0,117610.0,2.63498068]
[1753726027965,0.3025926,117620.0,117610.0,2.80502868]
[1753726028161,0.2175665,117620.0,117610.0,2.80502868]
[1753726028366,0.17203266,117620.0,117610.0,3.05502868]
[1753726028564,0.0850158,117630.0,117620.0,0.1700415]
[1753726028759,0.2550553,117630.0,117620.0,0.62857304]
[1753726028959,0.2550553,117630.0,117620.0,0.79860504]
[1753726029469,0.2550359,117640.0,117630.0,0.1700271]
[1753726029659,0.2125298,117640.0,117630.0,1.97115506]
[1753726029966,0.2125298,117640.0,117630.0,2.22115506]
[1753726031268,0.1730237,117640.0,117630.0,2.22215506]
[1753726031469,0.2125087,117650.0,117640.0,0.1700127]
[1753726031660,0.2549891,117660.0,117650.0,0.1699983]
[1753726031856,0.2549891,117660.0,117650.0,1.36315428]
[1753726032067,0.2549891,117660.0,117650.0,1.53314628]
[1753726032469,0.2549891,117660.0,117650.0,1.57479471]
[1753726033769,0.2124911,117660.0,117650.0,1.57479471]
[1753726033966,0.006,117660.0,117650.0,1.78328871]
[1753726034171,0.1759837,117660.0,117650.0,1.95328691]
[1753726035869,0.19293167,117660.0,117650.0,1.91078821]
[1753726036168,0.23843167,117660.0,117650.0,1.57427441]
[1753726036372,0.23843167,117660.0,117650.0,1.40339641]
[1753726036667,0.23843167,117660.0,117650.0,1.57339441]
[1753726036872,0.23843167,117660.0,117650.0,1.59027616]
[1753726037374,0.19293167,117660.0,117650.0,1.59027616]
[1753726038087,0.23843167,117660.0,117650.0,1.59027616]
[1753726038476,0.19293167,117660.0,117650.0,1.59027616]
[1753726038780,0.23843167,117660.0,117650.0,1.59027616]
[1753726039077,0.23843167,117660.0,117650.0,1.42027816]
[1753726040078,0.36864167,117660.0,117650.0,1.25064616]
[1753726040278,1.02376724,117660.0,117650.0,0.05953018]
[1753726040474,0.96276765,117660.0,117650.0,0.05953018]
[1753726040687,1.15115534,117660.0,117650.0,8e-08]
[1753726040881,0.5029068,117630.0,117620.0,0.60374993]
[1753726041080,0.51785477,117630.0,117620.0,0.16679395]
[1753726041388,0.51785477,117630.0,117620.0,0.92039395]
[1753726041680,0.5029213,117620.0,117610.0,1.74445252]
[1753726041882,0.51812064,117620.0,117610.0,2.49809252]
[1753726042977,0.51812064,117620.0,117610.0,2.61764186]
[1753726043182,0.51812064,117620.0,117610.0,2.66062108]
[1753726043978,0.51912064,117620.0,117610.0,2.66162108]
[1753726047488,0.51912064,117620.0,117610.0,2.14903576]
[1753726047788,0.51912064,117620.0,117610.0,2.83167678]
[1753726048083,0.18624064,117620.0,117610.0,2.83167678]
[1753726048783,0.23195064,117620.0,117610.0,2.83167678]
[1753726049786,0.01619934,117620.0,117610.0,2.852983]
[1753726049981,0.01619934,117620.0,117610.0,3.023031]
[1753726050379,0.18624044,117620.0,117610.0,3.023031]
[1753726050583,0.1710411,117620.0,117610.0,3.023031]
[1753726050790,0.001,117620.0,117610.0,3.023031]
[1753726051087,0.1710411,117620.0,117610.0,3.0459671]
[1753726051685,0.001,117620.0,117610.0,3.0459671]
[1753726052086,0.1700411,117620.0,117610.0,3.0459671]
[1753726052279,0.1700411,117620.0,117610.0,3.05362527]
[1753726052480,0.1700411,117620.0,117610.0,3.0765212]
[1753726052686,0.1700411,117620.0,117610.0,3.05362527]
[1753726053087,0.2975535,117630.0,117620.0,0.3713711]
[1753726053287,0.27028807,117630.0,117620.0,0.92815958]
[1753726053886,0.2550332,117640.0,117630.0,0.1700266]
[1753726054192,0.27028407,117640.0,117630.0,1.65228814]
[1753726054384,0.27028407,117640.0,117630.0,1.84520108]
[1753726055089,0.2135278,117640.0,117630.0,1.85289841]
[1753726055583,0.1710245,117640.0,117630.0,1.85289841]
[1753726056589,0.1710245,117640.0,117630.0,1.86812923]
[1753726056986,0.1710245,117640.0,117630.0,1.86912923]
[1753726057289,0.1710245,117640.0,117630.0,1.87012923]
[1753726057684,0.1710245,117640.0,117630.0,1.70011323]
[1753726059292,0.1710245,117640.0,117630.0,1.73064558]
[1753726060090,0.1710245,117640.0,117630.0,1.68482049]
[1753726060592,0.5071245,117640.0,117630.0,0.93778049]
[1753726060785,0.5071245,117640.0,117630.0,1.68146049]
[1753726064891,0.5071245,117640.0,117630.0,1.60606461]
[1753726067493,0.4253145,117640.0,117630.0,1.60606461]
[1753726067690,0.2966245,117640.0,117630.0,1.60606461]
[1753726067892,0.2167345,117640.0,117630.0,1.60606461]
[1753726068093,0.1710245,117640.0,117630.0,1.60606461]
[1753726068596,0.1710245,117640.0,117630.0,2.04325405]
[1753726068793,0.001,117640.0,117630.0,2.04325405]
[1753726068992,0.1710121,117640.0,117630.0,2.04325405]
[1753726069383,0.1710121,117640.0,117630.0,1.60606461]
[1753726069594,0.2167221,117640.0,117630.0,1.60606461]
[1753726070592,0.2167221,117640.0,117630.0,1.60806461]
[1753726070795,0.2167221,117640.0,117630.0,1.61006461]
[1753726072094,0.5508843,117650.0,117640.0,0.1700121]
[1753726072294,0.40964595,117650.0,117640.0,0.84723807]
[1753726072500,0.31743345,117650.0,117640.0,1.28442751]
[1753726072693,0.22642195,117650.0,117640.0,1.28442751]
[1753726072888,0.2124919,117660.0,117650.0,0.3658477]